fUSD/lending_fUSD_20260703
["ID","MTS","AMOUNT","RATE_DAILY","PERIOD"]
[426975634,1783092646000,-500.0,0.00029999,2]
[426975637,1783092646000,-500.0,0.00029999,2]
[426975636,1783092646000,-1000.0,0.00029999,2]
[426975638,1783092646000,-251.12667275,0.00029999,2]
[426975639,1783092646000,-500.0,0.00029999,2]
[426975641,1783092646000,-500.0,0.00029999,2]
[426975640,1783092646000,-500.0,0.00029999,2]
[426975643,1783092646000,-800.0,0.0003,2]
[426975642,1783092646000,-50000.0,0.0003,8]
[426975591,1783092646000,-1071.70273789,0.000299,2]
[426975633,1783092646000,-500.0,0.00029999,2]
[426975617,1783092646000,-500.0,0.00029999,2]
[426975621,1783092646000,-593.41021961,0.00029999,2]
[426975616,1783092646000,-500.0,0.00029999,2]
[426975588,1783092646000,-1071.70273789,0.000299,2]
[426975590,1783092646000,-1071.70273789,0.000299,2]
[426975593,1783092646000,-1071.70273789,0.000299,2]
[426975592,1783092646000,-1071.70273789,0.000299,2]
[426975594,1783092646000,-1071.70273789,0.000299,2]
[426975595,1783092646000,-1071.70273789,0.000299,2]
[426975596,1783092646000,-1071.70273789,0.000299,2]
[426975598,1783092646000,-1071.70273789,0.000299,2]
[426975597,1783092646000,-1071.70273789,0.000299,2]
[426975615,1783092646000,-500.0,0.00029999,2]
[426975601,1783092646000,-1071.70273789,0.000299,2]
[426975599,1783092646000,-1071.70273789,0.000299,2]
[426975602,1783092646000,-1071.70273789,0.000299,2]
[426975600,1783092646000,-1071.70273789,0.000299,2]
[426975603,1783092646000,-202.64585226,0.000299,2]
[426975613,1783092646000,-500.0,0.00029999,2]
[426975604,1783092646000,-1029.3,0.00029908,30]
[426975612,1783092646000,-1071.70273789,0.0002999,2]
[426975614,1783092646000,-500.0,0.00029999,2]
[426975609,1783092646000,-2338.0,0.00029966,3]
[426975611,1783092646000,-179.60269852,0.0002999,2]
[426975606,1783092646000,-183.6,0.00029953,30]
[426975607,1783092646000,-1521.31579126,0.00029962,2]
[426975605,1783092646000,-2338.0,0.00029944,3]
[426975608,1783092646000,-161.0,0.00029966,3]
[426975610,1783092646000,-1029.3,0.00029985,30]
[426975651,1783092647000,-883.0,0.00024174,2]
[426975644,1783092647000,-6946.46301992,0.0003,2]
[426975645,1783092647000,-451.88325053,0.0003,30]
[426975646,1783092647000,-50057.98206547,0.0003,2]
[426975647,1783092647000,-591.6525568,0.0003,4]
[426975648,1783092647000,-150724.12643695,0.0003,10]
[426975649,1783092647000,-373.13770615,0.0003,10]
[426975650,1783092647000,-298.675,0.0003,10]
[426975652,1783092647000,-85.53788495,0.00024174,2]
[426975662,1783092647000,-300.0,0.00027397,10]
[426975655,1783092647000,-904.96937009,0.00027351,2]
[426975654,1783092647000,-153.56805962,0.0002527,2]
[426975656,1783092647000,-2766.64462991,0.00027351,2]
[426975657,1783092647000,-4972.29187213,0.00027397,10]
[426975658,1783092647000,362.2999491,0.00027351,120]
[426975660,1783092647000,-160.37,0.00026027,7]
[426975659,1783092647000,-160.37,0.00024658,2]
[426975661,1783092647000,-679.26,0.00027397,10]
[426975653,1783092647000,-66.46211505,0.00024174,2]
[426975678,1783092648000,-821.43,0.00029969,2]
[426975673,1783092648000,-1361.468467,0.000293,7]
[426975675,1783092648000,-821.43,0.00029467,2]
[426975674,1783092648000,-1361.468467,0.000293,7]
[426975672,1783092648000,-178.2,0.00029232,30]
[426975668,1783092648000,-178.18,0.00028931,7]
[426975665,1783092648000,-988.648,0.0002754,90]
[426975670,1783092648000,-1361.468467,0.0002897,7]
[426975669,1783092648000,-1361.468467,0.0002897,7]
[426975667,1783092648000,-178.18,0.0002863,2]
[426975666,1783092648000,-250.0,0.00028066,10]
[426975664,1783092648000,-500.0,0.0002754,90]
[426975663,1783092648000,-1271.70812787,0.00027397,10]
[426975671,1783092648000,-1361.468467,0.0002897,7]
[426975677,1783092648000,-821.43,0.00029802,7]
[426975679,1783092648000,-12928.49363563,0.0003,10]
[426975680,1783092648000,-350.02,0.00027293,9]
[426975692,1783092648000,-1353.49074418,0.0003,10]
[426975693,1783092648000,-3813.65176884,0.0003,30]
[426975691,1783092648000,-433.33069163,0.0003,10]
[426975690,1783092648000,-520.17,0.0002863,30]
[426975676,1783092648000,-821.43,0.00029634,30]
[426975686,1783092648000,-488.26,0.00029299,7]
[426975688,1783092648000,-1361.468467,0.000293,7]
[426975687,1783092648000,-1361.468467,0.000293,7]
[426975681,1783092648000,-488.26,0.0002863,30]
[426975682,1783092648000,-488.26,0.00028797,7]
[426975685,1783092648000,-488.26,0.00029132,30]
[426975684,1783092648000,-1361.468467,0.0002897,7]
[426975683,1783092648000,-488.26,0.00028964,2]
[426975689,1783092648000,-3552.49178715,0.0003,10]
[426975698,1783092649000,-882.0,0.00024174,2]
[426975700,1783092649000,-4439.0450585,0.00027351,2]
[426975699,1783092649000,-500.0,0.00025031,2]
[426975748,1783092702000,3000.0,0.0003009,120]
[426975750,1783092702000,3000.0,0.0003009,120]
[426975749,1783092702000,3000.0,0.0003009,120]
[426975753,1783092702000,3000.0,0.0003009,120]
[426975751,1783092702000,3000.0,0.0003009,120]
[426975752,1783092702000,3000.0,0.0003009,120]
[426975759,1783092703000,2720.07677128,0.0003009,120]
[426975758,1783092703000,3000.0,0.0003009,120]
[426975757,1783092703000,3000.0,0.0003009,120]
[426975756,1783092703000,3000.0,0.0003009,120]
[426975755,1783092703000,3000.0,0.0003009,120]
[426975754,1783092703000,3000.0,0.0003009,120]
[426975760,1783092728000,3361.7647,0.00024064,120]
[426975762,1783092734000,3000.0,0.0003009,120]
[426975761,1783092734000,3000.0,0.0003009,120]
[426975763,1783092735000,3000.0,0.0003009,120]
[426975765,1783092735000,3000.0,0.0003009,120]
[426975764,1783092735000,3000.0,0.0003009,120]
[426975766,1783092735000,2046.90435578,0.0003009,120]
[426975769,1783092811000,400.0,0.0003,120]
[426975770,1783092914000,139427.854,0.000248,120]
[426975777,1783093151000,232.79918328,0.00025424,120]
[426975790,1783093467000,399.56,0.00029345,120]
[426975796,1783093651000,192.80201783,0.000129,2]
[426975797,1783093652000,508.80757549,0.000129,2]
[426975798,1783093652000,897.59687405,0.000129,2]
[426975802,1783093708000,506.93851576,0.00029119,120]
[426975801,1783093708000,500.0,0.00028669,120]
[426975804,1783093732000,500.0,0.00028669,120]
[426975805,1783093733000,442.63273246,0.00029119,120]
[426975806,1783093740000,2000.0,0.00030134,120]
[426975810,1783093742000,403.6837646,0.00028669,120]
[426975816,1783093752000,-263.0,0.00013399,2]
[426975817,1783093752000,-127.34397431,0.00013399,2]
[426975819,1783093753000,-128.34397431,0.00013399,2]
[426975818,1783093753000,-22.65602569,0.00013399,2]
[426975822,1783093753000,-105.36133525,0.00013399,2]
[426975823,1783093753000,-355.6064023,0.00013399,2]
[426975821,1783093753000,-159.0,0.00013399,2]
[426975825,1783093783000,288.30443915,0.00012599,2]
[426975824,1783093783000,373.16774005,0.00012599,2]
[426975831,1783093788000,-500.0,0.00013399,2]
[426975826,1783093788000,-500.0,0.00013399,2]
[426975827,1783093788000,-84.32761914,0.00013399,2]
[426975828,1783093788000,-540.78496144,0.00013399,2]
[426975830,1783093788000,-500.0,0.00013399,2]
[426975829,1783093788000,-500.0,0.00013399,2]
[426975832,1783093788000,-257.51013746,0.00013399,2]
[426975833,1783093788000,-257.2433851,0.00013399,2]
[426975839,1783093788000,-345.46561429,0.00013399,2]
[426975834,1783093788000,-500.0,0.00013399,2]
[426975836,1783093788000,-500.0,0.00013399,2]
[426975837,1783093788000,-540.78496144,0.00013399,2]
[426975838,1783093788000,-238.816869,0.00013399,2]
[426975840,1783093788000,-154.53438571,0.00013399,2]
[426975841,1783093788000,-500.0,0.00013399,2]
[426975842,1783093788000,-540.78496144,0.00013399,2]
[426975843,1783093788000,-262.01623254,0.00013399,2]
[426975835,1783093788000,-500.31188821,0.00013399,2]
[426975900,1783093835000,-540.78496144,0.00013399,2]
[426975894,1783093835000,-540.78496144,0.00013399,2]
[426975884,1783093835000,-540.78496144,0.00013399,2]
[426975881,1783093835000,-540.78496144,0.00013399,2]
[426975890,1783093835000,-540.78496144,0.00013399,2]
[426975878,1783093835000,-500.0,0.00013399,2]
[426975875,1783093835000,-500.0,0.00013399,2]
[426975898,1783093835000,-500.0,0.00013399,2]
[426975892,1783093835000,-500.0,0.00013399,2]
[426975877,1783093835000,-540.78496144,0.00013399,2]
[426975879,1783093835000,-412.07491802,0.00013399,2]
[426975899,1783093835000,-540.78496144,0.00013399,2]
[426975896,1783093835000,-540.78496144,0.00013399,2]
[426975905,1783093835000,-540.78496144,0.00013399,2]
[426975903,1783093835000,-540.78496144,0.00013399,2]
[426975901,1783093835000,-540.78496144,0.00013399,2]
[426975906,1783093835000,-540.78496144,0.00013399,2]
[426975902,1783093835000,-540.78496144,0.00013399,2]
[426975908,1783093835000,-540.78496144,0.00013399,2]
[426975909,1783093835000,-540.78496144,0.00013399,2]
[426975911,1783093835000,-540.78496144,0.00013399,2]
[426975921,1783093835000,-540.78496144,0.00013399,2]
[426975910,1783093835000,-540.78496144,0.00013399,2]
[426975919,1783093835000,-540.78496144,0.00013399,2]
[426975886,1783093835000,-500.0,0.00013399,2]
[426975897,1783093835000,-540.78496144,0.00013399,2]
[426975888,1783093835000,-540.78496144,0.00013399,2]
[426975920,1783093835000,-540.78496144,0.00013399,2]
[426975869,1783093835000,-507.37606532,0.00013399,2]
[426975851,1783093835000,-237.98376746,0.00013399,2]
[426975849,1783093835000,-150.47529727,0.00013399,2]
[426975850,1783093835000,-150.0,0.00013399,2]
[426975852,1783093835000,-500.0,0.00013399,2]
[426975854,1783093835000,-500.0,0.00013399,2]
[426975853,1783093835000,-540.78496144,0.00013399,2]
[426975855,1783093835000,-500.0,0.00013399,2]
[426975856,1783093835000,-500.0,0.00013399,2]
[426975858,1783093835000,-540.78496144,0.00013399,2]
[426975857,1783093835000,-540.78496144,0.00013399,2]
[426975863,1783093835000,-89.91135066,0.00013399,2]
[426975859,1783093835000,-302.1269509,0.00013399,2]
[426975860,1783093835000,-197.8730491,0.00013399,2]
[426975861,1783093835000,-318.00548172,0.00013399,2]
[426975862,1783093835000,-181.99451828,0.00013399,2]
[426975864,1783093835000,-410.08864934,0.00013399,2]
[426975865,1783093835000,-484.34494203,0.00013399,2]
[426975866,1783093835000,-15.65505797,0.00013399,2]
[426975874,1783093835000,-500.0,0.00013399,2]
[426975872,1783093835000,-630.83152395,0.00013399,2]
[426975868,1783093835000,-500.0,0.00013399,2]
[426975867,1783093835000,-540.78496144,0.00013399,2]
[426975873,1783093835000,-540.78496144,0.00013399,2]
[426975870,1783093835000,-540.78496144,0.00013399,2]
[426975871,1783093835000,-500.0,0.00013399,2]
[426975876,1783093835000,-500.0,0.00013399,2]
[426975912,1783093835000,-540.78496144,0.00013399,2]
[426975969,1783093835000,-550.79132264,0.00013399,2]
[426975913,1783093835000,-540.78496144,0.00013399,2]
[426975947,1783093835000,-528.42416233,0.00013399,2]
[426975948,1783093835000,-528.42416233,0.00013399,2]
[426975950,1783093835000,-528.42416233,0.00013399,2]
[426975949,1783093835000,-528.42416233,0.00013399,2]
[426975955,1783093835000,-528.42416233,0.00013399,2]
[426975953,1783093835000,-528.42416233,0.00013399,2]
[426975952,1783093835000,-528.42416233,0.00013399,2]
[426975954,1783093835000,-528.42416233,0.00013399,2]
[426975951,1783093835000,-528.42416233,0.00013399,2]
[426975957,1783093835000,-528.42416233,0.00013399,2]
[426975959,1783093835000,-528.42416233,0.00013399,2]
[426975958,1783093835000,-528.42416233,0.00013399,2]
[426975960,1783093835000,-528.42416233,0.00013399,2]
[426975962,1783093835000,-528.42416233,0.00013399,2]
[426975964,1783093835000,-528.42416233,0.00013399,2]
[426975965,1783093835000,-528.42416233,0.00013399,2]
[426975963,1783093835000,-528.42416233,0.00013399,2]
[426975966,1783093835000,-528.42416233,0.00013399,2]
[426975968,1783093835000,-550.79132264,0.00013399,2]
[426975961,1783093835000,-528.42416233,0.00013399,2]
[426975967,1783093835000,-528.42416233,0.00013399,2]
[426975973,1783093835000,-550.79132264,0.00013399,2]
[426975971,1783093835000,-550.79132264,0.00013399,2]
[426975972,1783093835000,-550.79132264,0.00013399,2]
[426975970,1783093835000,-550.79132264,0.00013399,2]
[426975945,1783093835000,-528.42416233,0.00013399,2]
[426975917,1783093835000,-540.78496144,0.00013399,2]
[426975956,1783093835000,-528.42416233,0.00013399,2]
[426975941,1783093835000,-528.42416233,0.00013399,2]
[426975918,1783093835000,-540.78496144,0.00013399,2]
[426975914,1783093835000,-540.78496144,0.00013399,2]
[426975915,1783093835000,-540.78496144,0.00013399,2]
[426975916,1783093835000,-540.78496144,0.00013399,2]
[426975922,1783093835000,-540.78496144,0.00013399,2]
[426975923,1783093835000,-540.78496144,0.00013399,2]
[426975926,1783093835000,-540.78496144,0.00013399,2]
[426975929,1783093835000,-540.78496144,0.00013399,2]
[426975928,1783093835000,-540.78496144,0.00013399,2]
[426975931,1783093835000,-540.78496144,0.00013399,2]
[426975932,1783093835000,-540.78496144,0.00013399,2]
[426975946,1783093835000,-528.42416233,0.00013399,2]
[426975925,1783093835000,-540.78496144,0.00013399,2]
[426975924,1783093835000,-540.78496144,0.00013399,2]
[426975927,1783093835000,-540.78496144,0.00013399,2]
[426975933,1783093835000,-540.78496144,0.00013399,2]
[426975934,1783093835000,-540.78496144,0.00013399,2]
[426975936,1783093835000,-540.78496144,0.00013399,2]
[426975944,1783093835000,-528.42416233,0.00013399,2]
[426975937,1783093835000,-540.78496144,0.00013399,2]
[426975935,1783093835000,-540.78496144,0.00013399,2]
[426975942,1783093835000,-528.42416233,0.00013399,2]
[426975940,1783093835000,-528.42416233,0.00013399,2]
[426975943,1783093835000,-528.42416233,0.00013399,2]
[426975939,1783093835000,-528.42416233,0.00013399,2]
[426975938,1783093835000,-540.78496144,0.00013399,2]
[426975930,1783093835000,-540.78496144,0.00013399,2]
[426975978,1783093836000,-27570.9590048,0.000134,2]
[426975975,1783093836000,-1342.75124184,0.000134,2]
[426975976,1783093836000,-1816.7886,0.000134,2]
[426975974,1783093836000,-550.79132261,0.00013399,2]
[426975979,1783093836000,-54340.60152347,0.000134,2]
[426975981,1783093836000,-368.41218695,0.000134,2]
[426975980,1783093836000,-13858.75980449,0.000134,2]
[426975977,1783093836000,-44400.77887595,0.000134,2]
[426976025,1783093838000,-500.0,0.00014999,2]
[426976031,1783093838000,-500.0,0.00014999,2]
[426976034,1783093838000,-500.0,0.00014999,2]
[426976035,1783093838000,-500.0,0.00014999,2]
[426976038,1783093838000,-500.0,0.00014999,2]
[426976042,1783093838000,-436911.59690776,0.00015,2]
[426976036,1783093838000,-500.0,0.00014999,2]
[426976032,1783093838000,-500.0,0.00014999,2]
[426976039,1783093838000,-429.05428832,0.00014999,2]
[426976041,1783093838000,-150.0,0.00015,2]
[426976033,1783093838000,-500.0,0.00014999,2]
[426976037,1783093838000,-500.0,0.00014999,2]
[426976044,1783093838000,-430.04002194,0.00015,2]
[426976043,1783093838000,-90440.98743911,0.00015,2]
[426976045,1783093838000,-13705.29307206,0.00015032,2]
[426976048,1783093838000,-600.0,0.00015762,2]
[426976049,1783093838000,-600.0,0.00015762,2]
[426976047,1783093838000,-433.0,0.00015717,2]
[426976046,1783093838000,-161.2,0.00015139,2]
[426976050,1783093838000,-2282.19915328,0.00015807,2]
[426976053,1783093838000,-1923.94874106,0.00016338,2]
[426976051,1783093838000,-368.71907251,0.00016,2]
[426976052,1783093838000,-150.0,0.00016,2]
[426976040,1783093838000,-154.61186558,0.00014999,2]
[426976024,1783093838000,-296.87336864,0.00014999,2]
[426976022,1783093838000,-500.0,0.00014999,2]
[426976019,1783093838000,-500.0,0.00014999,2]
[426976005,1783093838000,-150.0,0.00013809,2]
[426976006,1783093838000,-4772.12036229,0.0001439,2]
[426976004,1783093838000,-13705.29307211,0.00013573,2]
[426976003,1783093838000,-60808.30029242,0.000134,2]
[426976007,1783093838000,-255.0,0.00014511,2]
[426976009,1783093838000,-300.0,0.00014912,2]
[426976015,1783093838000,-500.0,0.00014999,2]
[426976013,1783093838000,-250.0,0.0001497,2]
[426976012,1783093838000,-600.0,0.00014949,2]
[426976010,1783093838000,-250.0,0.00014925,2]
[426976008,1783093838000,-600.0,0.0001474,2]
[426976011,1783093838000,-200.0,0.00014925,2]
[426976014,1783093838000,-256.16664071,0.00014999,2]
[426976018,1783093838000,-500.0,0.00014999,2]
[426976016,1783093838000,-500.0,0.00014999,2]
[426976017,1783093838000,-500.0,0.00014999,2]
[426976020,1783093838000,-500.0,0.00014999,2]
[426976027,1783093838000,-500.0,0.00014999,2]
[426976030,1783093838000,-593.41021961,0.00014999,2]
[426976028,1783093838000,-500.0,0.00014999,2]
[426976026,1783093838000,-500.0,0.00014999,2]
[426976056,1783093838000,-188.27807364,0.0001639,2]
[426976021,1783093838000,-283.20026569,0.00014999,2]
[426976023,1783093838000,-500.0,0.00014999,2]
[426976055,1783093838000,-600.0,0.0001639,2]
[426976029,1783093838000,-500.0,0.00014999,2]
[426976054,1783093838000,-200.0,0.0001634,2]
[426976093,1783093838000,-1585.93194303,0.00016438,2]
[426976095,1783093838000,-1585.93194303,0.00016438,2]
[426976105,1783093838000,-1585.93194303,0.00016438,2]
[426976108,1783093838000,-1585.93194303,0.00016438,2]
[426976112,1783093838000,-1585.93194303,0.00016438,2]
[426976110,1783093838000,-1585.93194303,0.00016438,2]
[426976097,1783093838000,-1585.93194303,0.00016438,2]
[426976103,1783093838000,-1585.93194303,0.00016438,2]
[426976114,1783093838000,-1585.93194303,0.00016438,2]
[426976099,1783093838000,-1585.93194303,0.00016438,2]
[426976101,1783093838000,-1585.93194303,0.00016438,2]
[426976086,1783093838000,-1585.93194303,0.00016438,2]
[426976115,1783093838000,-1585.93194303,0.00016438,2]
[426976117,1783093838000,-1585.93194303,0.00016438,2]
[426976120,1783093838000,-1585.93194303,0.00016438,2]
[426976118,1783093838000,-1585.93194303,0.00016438,2]
[426976123,1783093838000,-1585.93194303,0.00016438,2]
[426976121,1783093838000,-1585.93194303,0.00016438,2]
[426976122,1783093838000,-1585.93194303,0.00016438,2]
[426976125,1783093838000,-1585.93194303,0.00016438,2]
[426976124,1783093838000,-1585.93194303,0.00016438,2]
[426976126,1783093838000,-1585.93194303,0.00016438,2]
[426976129,1783093838000,-1585.93194303,0.00016438,2]
[426976128,1783093838000,-1585.93194303,0.00016438,2]
[426976127,1783093838000,-1585.93194303,0.00016438,2]
[426976083,1783093838000,-1585.93194303,0.00016438,2]
[426976058,1783093838000,-410.34995915,0.0001639,2]
[426976084,1783093838000,-1585.93194303,0.00016438,2]
[426976065,1783093838000,-500.0,0.0001639,2]
[426976059,1783093838000,-200.0,0.0001639,2]
[426976057,1783093838000,-250.0,0.0001639,2]
[426976066,1783093838000,-161.2,0.000164,2]
[426976063,1783093838000,-300.0,0.0001639,2]
[426976061,1783093838000,-161.91605902,0.0001639,2]
[426976081,1783093838000,-1585.93194303,0.00016438,2]
[426976068,1783093838000,-1585.93194303,0.00016438,2]
[426976071,1783093838000,-1585.93194303,0.00016438,2]
[426976067,1783093838000,-1585.93194303,0.00016438,2]
[426976070,1783093838000,-1585.93194303,0.00016438,2]
[426976069,1783093838000,-1585.93194303,0.00016438,2]
[426976064,1783093838000,-193.0,0.0001639,2]
[426976075,1783093838000,-1585.93194303,0.00016438,2]
[426976072,1783093838000,-1585.93194303,0.00016438,2]
[426976074,1783093838000,-1585.93194303,0.00016438,2]
[426976076,1783093838000,-1585.93194303,0.00016438,2]
[426976077,1783093838000,-1585.93194303,0.00016438,2]
[426976078,1783093838000,-1585.93194303,0.00016438,2]
[426976079,1783093838000,-1585.93194303,0.00016438,2]
[426976080,1783093838000,-1585.93194303,0.00016438,2]
[426976090,1783093838000,-1585.93194303,0.00016438,2]
[426976082,1783093838000,-1585.93194303,0.00016438,2]
[426976088,1783093838000,-1585.93194303,0.00016438,2]
[426976073,1783093838000,-1585.93194303,0.00016438,2]
[426976167,1783093839000,-1873.01760609,0.00016438,2]
[426976165,1783093839000,-1873.01760609,0.00016438,2]
[426976164,1783093839000,-1873.01760609,0.00016438,2]
[426976166,1783093839000,-1873.01760609,0.00016438,2]
[426976156,1783093839000,-1873.01760609,0.00016438,2]
[426976161,1783093839000,-1873.01760609,0.00016438,2]
[426976162,1783093839000,-1873.01760609,0.00016438,2]
[426976160,1783093839000,-1873.01760609,0.00016438,2]
[426976158,1783093839000,-1873.01760609,0.00016438,2]
[426976163,1783093839000,-1873.01760609,0.00016438,2]
[426976170,1783093839000,-1873.01760609,0.00016438,2]
[426976179,1783093839000,-206.0,0.00016791,2]
[426976168,1783093839000,-1873.01760609,0.00016438,2]
[426976175,1783093839000,-1873.01760609,0.00016438,2]
[426976176,1783093839000,-1873.01760609,0.00016438,2]
[426976172,1783093839000,-1873.01760609,0.00016438,2]
[426976171,1783093839000,-1873.01760609,0.00016438,2]
[426976178,1783093839000,-13705.29307206,0.0001649,2]
[426976174,1783093839000,-1873.01760609,0.00016438,2]
[426976173,1783093839000,-1873.01760609,0.00016438,2]
[426976177,1783093839000,-1873.01760609,0.00016438,2]
[426976190,1783093839000,-340.0,0.00019296,2]
[426976180,1783093839000,-249.53,0.00017645,2]
[426976159,1783093839000,-1873.01760609,0.00016438,2]
[426976169,1783093839000,-1873.01760609,0.00016438,2]
[426976157,1783093839000,-1873.01760609,0.00016438,2]
[426976150,1783093839000,-1873.01760609,0.00016438,2]
[426976153,1783093839000,-1873.01760609,0.00016438,2]
[426976182,1783093839000,-250.0,0.00017704,2]
[426976130,1783093839000,-1585.93194303,0.00016438,2]
[426976133,1783093839000,-1585.93194303,0.00016438,2]
[426976137,1783093839000,-1585.93194303,0.00016438,2]
[426976134,1783093839000,-1585.93194303,0.00016438,2]
[426976132,1783093839000,-1585.93194303,0.00016438,2]
[426976131,1783093839000,-1585.93194303,0.00016438,2]
[426976135,1783093839000,-1585.93194303,0.00016438,2]
[426976136,1783093839000,-1585.93194303,0.00016438,2]
[426976138,1783093839000,-1585.93194303,0.00016438,2]
[426976140,1783093839000,-1585.93194303,0.00016438,2]
[426976152,1783093839000,-1873.01760609,0.00016438,2]
[426976139,1783093839000,-1585.93194303,0.00016438,2]
[426976141,1783093839000,-1585.93194303,0.00016438,2]
[426976143,1783093839000,-1585.93194303,0.00016438,2]
[426976144,1783093839000,-1585.93194303,0.00016438,2]
[426976149,1783093839000,-1873.01760609,0.00016438,2]
[426976147,1783093839000,-1585.93194303,0.00016438,2]
[426976146,1783093839000,-1585.93194303,0.00016438,2]
[426976148,1783093839000,-1585.93194303,0.00016438,2]
[426976145,1783093839000,-1585.93194303,0.00016438,2]
[426976151,1783093839000,-1873.01760609,0.00016438,2]
[426976154,1783093839000,-1873.01760609,0.00016438,2]
[426976155,1783093839000,-1873.01760609,0.00016438,2]
[426976142,1783093839000,-1585.93194303,0.00016438,2]
[426976183,1783093839000,-13705.29307206,0.00017949,2]
[426976181,1783093839000,-161.2,0.00017662,2]
[426976184,1783093839000,-1243.90184392,0.00018222,2]
[426976216,1783093839000,-150.0,0.00019999,2]
[426976219,1783093839000,-199.5,0.00019999,2]
[426976221,1783093839000,-9830.44175176,0.0002,2]
[426976223,1783093839000,-150.0,0.0002,2]
[426976227,1783093839000,-151.0,0.0002,2]
[426976218,1783093839000,-151.0,0.00019999,2]
[426976217,1783093839000,-152.0,0.00019999,2]
[426976224,1783093839000,-150.0,0.0002,2]
[426976220,1783093839000,-1791.33,0.0002,2]
[426976226,1783093839000,-151.0,0.0002,2]
[426976225,1783093839000,-150.0,0.0002,2]
[426976229,1783093839000,-152.0,0.0002,2]
[426976239,1783093839000,-151.0,0.0002,2]
[426976228,1783093839000,-151.0,0.0002,2]
[426976230,1783093839000,-153.0,0.0002,2]
[426976235,1783093839000,-150.0,0.0002,2]
[426976237,1783093839000,-151.0,0.0002,2]
[426976233,1783093839000,-151.0,0.0002,2]
[426976236,1783093839000,-151.0,0.0002,2]
[426976238,1783093839000,-153.0,0.0002,2]
[426976234,1783093839000,-150.0,0.0002,2]
[426976231,1783093839000,-151.0,0.0002,2]
[426976232,1783093839000,-150.0,0.0002,2]
[426976189,1783093839000,-340.0,0.00019296,2]
[426976240,1783093839000,-150.0,0.0002,2]
[426976215,1783093839000,-3275.62318049,0.0001995,15]
[426976210,1783093839000,-340.0,0.00019296,2]
[426976222,1783093839000,-822.0,0.0002,2]
[426976209,1783093839000,-340.0,0.00019296,2]
[426976207,1783093839000,-340.0,0.00019296,2]
[426976185,1783093839000,-161.2,0.00018924,2]
[426976188,1783093839000,-340.0,0.00019296,2]
[426976187,1783093839000,-340.0,0.00019296,2]
[426976191,1783093839000,-340.0,0.00019296,2]
[426976201,1783093839000,-340.0,0.00019296,2]
[426976197,1783093839000,-340.0,0.00019296,2]
[426976192,1783093839000,-340.0,0.00019296,2]
[426976194,1783093839000,-340.0,0.00019296,2]
[426976198,1783093839000,-340.0,0.00019296,2]
[426976193,1783093839000,-340.0,0.00019296,2]
[426976202,1783093839000,-340.0,0.00019296,2]
[426976186,1783093839000,-500.0,0.0001901,2]
[426976196,1783093839000,-340.0,0.00019296,2]
[426976200,1783093839000,-340.0,0.00019296,2]
[426976204,1783093839000,-340.0,0.00019296,2]
[426976213,1783093839000,-213.0,0.00019932,2]
[426976212,1783093839000,-150.0,0.00019932,2]
[426976214,1783093839000,-440.40020755,0.00019932,2]
[426976205,1783093839000,-340.0,0.00019296,2]
[426976203,1783093839000,-340.0,0.00019296,2]
[426976206,1783093839000,-340.0,0.00019296,2]
[426976211,1783093839000,-13705.29307206,0.00019407,2]
[426976208,1783093839000,-340.0,0.00019296,2]
[426976199,1783093839000,-340.0,0.00019296,2]
[426976294,1783093840000,-150.0,0.00022648,2]
[426976280,1783093840000,-10091.05204634,0.00021777,2]
[426976282,1783093840000,-500.0,0.00021917,2]
[426976283,1783093840000,-5000.0,0.00021918,2]
[426976273,1783093840000,-151.0,0.00021701,2]
[426976276,1783093840000,-151.0,0.00021711,2]
[426976277,1783093840000,-87745.28,0.00021714,2]
[426976274,1783093840000,-151.0,0.00021701,2]
[426976275,1783093840000,-214.65647567,0.00021701,2]